Workbook

Sheet Mittelhilfstabelle
A2: Stunde | B2: Wind | C2: Luftfeuchtigkeit | D2: Luftdruck | E2: Taupunkttemperatur | F2: Bewölkung | H2: Stunde | I2: Wind | J2: Luftfeuchtigkeit | K2: Luftdruck | L2: Taupunkttemperatur | M2: Bewölkung
A3: 00 | B3: 2 | C3: 88 | D3: 1014.4 | E3: 4.8 | F3: 7 | H3: 00 | I3: 1 | J3: 96 | K3: 1024.3 | L3: 1.8 | M3: 0
A4: 01 | B4: 0 | C4: 90 | D4: 1014.5 | E4: 4.4 | F4: 5 | H4: 01 | I4: 1 | J4: 97 | K4: 1024.4 | L4: 1.4 | M4: 0
A5: 02 | B5: 2 | C5: 90 | D5: 1014.3 | E5: 4.2 | F5: 1 | H5: 02 | I5: 0 | J5: 97 | K5: 1024.7 | L5: 0.6 | M5: 0
A6: 03 | B6: 1 | C6: 93 | D6: 1014.3 | E6: 3.4 | F6: 0 | H6: 03 | I6: 1 | J6: 97 | K6: 1024.7 | L6: 0.4 | M6: 0
A7: 04 | B7: 1 | C7: 94 | D7: 1014.3 | E7: 3.2 | F7: 0 | H7: 04 | I7: 0 | J7: 97 | K7: 1024.7 | L7: -0.5 | M7: 0
A8: 05 | B8: 0 | C8: 93 | D8: 1014 | E8: 3.2 | F8: 6 | H8: 05 | I8: 1 | J8: 98 | K8: 1024.9 | L8: -0.8 | M8: 0
A9: 06 | B9: 1 | C9: 94 | D9: 1014.1 | E9: 2.4 | F9: 6 | H9: 06 | I9: 0 | J9: 98 | K9: 1024.8 | L9: -0.6 | M9: 0
A10: 07 | B10: 0 | C10: 94 | D10: 1014.5 | E10: 3.7 | F10: 4 | H10: 07 | I10: 1 | J10: 98 | K10: 1025.2 | L10: -0.3 | M10: 0
A11: 08 | B11: 0 | C11: 93 | D11: 1014.6 | E11: 4.3 | F11: 2 | H11: 08 | I11: 1 | J11: 98 | K11: 1025.3 | L11: 2.2 | M11: 0
A12: 09 | B12: 0 | C12: 88 | D12: 1014.8 | E12: 6.4 | F12: 1 | H12: 09 | I12: 1 | J12: 95 | K12: 1025.5 | L12: 4.6 | M12: 0
A13: 10 | B13: 1 | C13: 79 | D13: 1014.7 | E13: 7.9 | F13: 4 | H13: 10 | I13: 1 | J13: 89 | K13: 1025.4 | L13: 7 | M13: 0
A14: 11 | B14: 1 | C14: 75 | D14: 1014.4 | E14: 9.5 | F14: 7 | H14: 11 | I14: 1 | J14: 77 | K14: 1024.8 | L14: 8.8 | M14: 1
A15: 12 | B15: 1 | C15: 67 | D15: 1014 | E15: 8.5 | F15: 7 | H15: 12 | I15: 1 | J15: 68 | K15: 1024.4 | L15: 9.7 | M15: 1
A16: 13 | B16: 1 | C16: 63 | D16: 1013.7 | E16: 7.6 | F16: 7 | H16: 13 | I16: 1 | J16: 59 | K16: 1023.9 | L16: 9.3 | M16: 1
A17: 14 | B17: 1 | C17: 61 | D17: 1013.3 | E17: 7.8 | F17: 7 | H17: 14 | I17: 2 | J17: 55 | K17: 1023.2 | L17: 8.9 | M17: 2
A18: 15 | B18: 1 | C18: 56 | D18: 1013.1 | E18: 6.9 | F18: 5 | H18: 15 | I18: 2 | J18: 61 | K18: 1022.7 | L18: 9.4 | M18: 2
A19: 16 | H19: 16 | I19: 2 | J19: 69 | K19: 1022.2 | L19: 10.7 | M19: 2
A20: 17 | H20: 17 | I20: 2 | J20: 69 | K20: 1021.9 | L20: 9.9 | M20: 1
A21: 18 | H21: 18 | I21: 2 | J21: 75 | K21: 1021.8 | L21: 9.3 | M21: 0
A22: 19 | H22: 19 | I22: 2 | J22: 79 | K22: 1021.9 | L22: 8.8 | M22: 0
A23: 20 | H23: 20 | I23: 1 | J23: 82 | K23: 1022.1 | L23: 7.8 | M23: 0
A24: 21 | H24: 21 | I24: 1 | J24: 87 | K24: 1021.9 | L24: 7.4 | M24: 0
A25: 22 | H25: 22 | I25: 1 | J25: 91 | K25: 1021.7 | L25: 6.6 | M25: 0
A26: 23 | H26: 23 | I26: 1 | J26: 93 | K26: 1021.6 | L26: 6.1 | M26: 0
A27: Mittel | B27: =ROUND(AVERAGE(B3:B26),1) -> 0.8 | C27: =ROUND(AVERAGE(C3:C26),1) -> 82.4 | D27: =ROUND(AVERAGE(D3:D26),1) -> 1014.2 | E27: =AVERAGE(E3:E26) -> 5.5125 | F27: =ROUND(AVERAGE(F3:F26),1) -> 4.3 | H27: Mittel | I27: =ROUND(AVERAGE(I3:I26),1) -> 1.1 | J27: =ROUND(AVERAGE(J3:J26),1) -> 84.4 | K27: =ROUND(AVERAGE(K3:K26),1) -> 1023.7 | L27: =AVERAGE(L3:L26) -> 5.354166667 | M27: =ROUND(AVERAGE(M3:M26),1) -> 0.4
E29: 2014-04-01 | L29: 2014-03-29
A32: Stunde | B32: Wind | C32: Luftfeuchtigkeit | D32: Luftdruck | E32: Taupunkttemperatur | F32: Bewölkung | H32: Stunde | I32: Wind | J32: Luftfeuchtigkeit | K32: Luftdruck | L32: Taupunkttemperatur | M32: Bewölkung
A33: 00 | B33: 1 | C33: 94 | D33: 1021.3 | E33: 5.4 | F33: 0 | H33: 00 | I33: 1 | J33: 82 | K33: 1015.3 | L33: 3.7 | M33: 7
A34: 01 | B34: 1 | C34: 95 | D34: 1020.8 | E34: 4.6 | F34: 0 | H34: 01 | I34: 1 | J34: 84 | K34: 1015 | L34: 3.4 | M34: 7
A35: 02 | B35: 1 | C35: 95 | D35: 1020.3 | E35: 4 | F35: 0 | H35: 02 | I35: 0 | J35: 86 | K35: 1014.3 | L35: 3.1 | M35: 7
A36: 03 | B36: 1 | C36: 95 | D36: 1020.1 | E36: 3.8 | F36: 0 | H36: 03 | I36: 1 | J36: 87 | K36: 1014.5 | L36: 3.3 | M36: 7
A37: 04 | B37: 1 | C37: 95 | D37: 1020 | E37: 3.5 | F37: 0 | H37: 04 | I37: 1 | J37: 89 | K37: 1014 | L37: 3.2 | M37: 7
A38: 05 | B38: 1 | C38: 95 | D38: 1019.7 | E38: 2.6 | F38: 0 | H38: 05 | I38: 0 | J38: 89 | K38: 1013.9 | L38: 2.8 | M38: 7
A39: 06 | B39: 1 | C39: 95 | D39: 1019.7 | E39: 2.6 | F39: 0 | H39: 06 | I39: 1 | J39: 89 | K39: 1014 | L39: 3.1 | M39: 7
A40: 07 | B40: 1 | C40: 95 | D40: 1019.7 | E40: 2.6 | F40: 1 | H40: 07 | I40: 0 | J40: 87 | K40: 1014.1 | L40: 3.2 | M40: 7
A41: 08 | B41: 0 | C41: 89 | D41: 1019.5 | E41: 5.5 | F41: 1 | H41: 08 | I41: 0 | J41: 91 | K41: 1014.4 | L41: 4.4 | M41: 7
A42: 09 | B42: 1 | C42: 84 | D42: 1019.3 | E42: 7 | F42: 1 | H42: 09 | I42: 1 | J42: 83 | K42: 1014.4 | L42: 6.2 | M42: 7
A43: 10 | B43: 1 | C43: 76 | D43: 1018.9 | E43: 9 | F43: 1 | H43: 10 | I43: 0 | J43: 83 | K43: 1014.6 | L43: 7.8 | M43: 7
A44: 11 | B44: 1 | C44: 63 | D44: 1018.4 | E44: 9.4 | F44: 1 | H44: 11 | I44: 1 | J44: 75 | K44: 1014.4 | L44: 8.5 | M44: 7
A45: 12 | B45: 2 | C45: 51 | D45: 1017.6 | E45: 7 | F45: 1 | H45: 12 | I45: 2 | J45: 70 | K45: 1014.2 | L45: 8.5 | M45: 7
A46: 13 | B46: 2 | C46: 52 | D46: 1017.3 | E46: 8.2 | F46: 1 | H46: 13 | I46: 2 | J46: 61 | K46: 1014.1 | L46: 7.7 | M46: 7
A47: 14 | B47: 1 | C47: 47 | D47: 1016.5 | E47: 7.2 | F47: 1 | H47: 14 | I47: 2 | J47: 58 | K47: 1013.7 | L47: 7.3 | M47: 7
A48: 15 | B48: 1 | C48: 43 | D48: 1015.9 | E48: 6 | F48: 1 | H48: 15 | I48: 2 | J48: 54 | K48: 1013.5 | L48: 6.3 | M48: 7
A49: 16 | B49: 1 | C49: 54 | D49: 1015.7 | E49: 8.3 | F49: 2 | H49: 16 | I49: 2 | J49: 57 | K49: 1013.3 | L49: 7.1 | M49: 7
A50: 17 | B50: 2 | C50: 55 | D50: 1015.5 | E50: 7.2 | F50: 3 | H50: 17 | I50: 1 | J50: 59 | K50: 1013.3 | L50: 7.1 | M50: 7
A51: 18 | B51: 1 | C51: 49 | D51: 1015.8 | E51: 3.7 | F51: 3 | H51: 18 | I51: 1 | J51: 63 | K51: 1013.7 | L51: 6.6 | M51: 7
A52: 19 | B52: 1 | C52: 52 | D52: 1015.7 | E52: 3.1 | F52: 3 | H52: 19 | I52: 1 | J52: 71 | K52: 1014 | L52: 6.7 | M52: 7
A53: 20 | B53: 1 | C53: 63 | D53: 1016 | E53: 3.9 | F53: 3 | H53: 20 | I53: 1 | J53: 75 | K53: 1014.3 | L53: 6.4 | M53: 7
A54: 21 | B54: 1 | C54: 71 | D54: 1015.8 | E54: 4.1 | F54: 5 | H54: 21 | I54: 1 | J54: 76 | K54: 1014.3 | L54: 6.2 | M54: 7
A55: 22 | B55: 1 | C55: 76 | D55: 1015.9 | E55: 4.1 | F55: 7 | H55: 22 | I55: 2 | J55: 83 | K55: 1014.3 | L55: 5.7 | M55: 7
A56: 23 | B56: 1 | C56: 80 | D56: 1015.6 | E56: 4 | F56: 7 | H56: 23 | I56: 2 | J56: 86 | K56: 1014.6 | L56: 5.2 | M56: 7
A57: Mittel | B57: =ROUND(AVERAGE(B33:B56),1) -> 1.1 | C57: =ROUND(AVERAGE(C33:C56),1) -> 73.5 | D57: =ROUND(AVERAGE(D33:D56),1) -> 1018 | E57: =ROUND(AVERAGE(E33:E56),1) -> 5.3 | F57: =ROUND(AVERAGE(F33:F56),1) -> 1.8 | H57: Mittel | I57: =ROUND(AVERAGE(I33:I56),1) -> 1.1 | J57: =ROUND(AVERAGE(J33:J56),1) -> 76.6 | K57: =ROUND(AVERAGE(K33:K56),1) -> 1014.2 | L57: =ROUND(AVERAGE(L33:L56),1) -> 5.6 | M57: =ROUND(AVERAGE(M33:M56),1) -> 7
E59: 2014-03-30 | L59: 2014-03-31

Sheet Kurztabelle
A2: Wetterwarte: Köttewitz | L2: Monat: | M2: März | R2: Jahr: | U2: 2014
A4: Dat. | B4: TTT | C4: TxTx | D4: TnTn | E4: Tg | F4: Umin. | G4: UU | H4: NN | I4: RRRR | J4: Art | L4: sss | M4: PPPP | N4: eee | O4: fff | R4: Tage mit | V4: fk | W4: Summe
J5: * | O5: Bft | P5: SS | Q5: Art ( D ) | R5: RR | S5: Ge | T5: Bf6 | U5: Bf8 | V5: Bft | W5: Gewitter
A6: 01. | B6: 3.5 | C6: 8.7 | D6: -0.2 | E6: -2.8 | F6: 69 | G6: 86 | H6: 4.8 | I6: . | L6: 4.8 | M6: 1004.4 | N6: 1.2 | O6: 2 | V6: 5 | AA6: max >=30,0°C | AB6: max >=25,0°C | AC6: max <0,0°C | AE6: RR >=0,1 mm | AF6: RR >=1,0 mm | AG6: RR >=3,0 mm | AH6: RR >=10,0 mm
A7: 02. | B7: 5.4 | C7: 11.2 | D7: 0.3 | E7: -1.1 | F7: 64 | G7: 83 | H7: 4.3 | I7: . | L7: 3.1 | M7: 1004.1 | N7: 2.6 | O7: 1 | V7: 5 | AA7: =COUNTIF(C6:C15,">=30") -> 0 | AB7: =COUNTIF(C6:C15,">=25") -> 0 | AC7: =COUNTIF(C6:C15,"<0") -> 0 | AE7: =COUNTIF(I6:I15,">=0,1") -> 0 | AF7: =COUNTIF(I6:I15,">=1") -> 0 | AG7: =COUNTIF(I6:I15,">=3") -> 0 | AH7: =COUNTIF(I6:I15,">=10") -> 0
A8: 03. | B8: 6.1 | C8: 11.2 | D8: 0.9 | E8: -0.6 | F8: 53 | G8: 77 | H8: 5.9 | I8: 0 | L8: 2.9 | M8: 997.6 | N8: 1.9 | O8: 2 | V8: 5 | AA8: =COUNTIF(C18:C27,">=30") -> 0 | AB8: =COUNTIF(C18:C27,">=25") -> 0 | AC8: =COUNTIF(C18:C27,"<0") -> 0 | AE8: =COUNTIF(I18:I27,">=0,1") -> 5 | AF8: =COUNTIF(I18:I27,">=1") -> 4 | AG8: =COUNTIF(I18:I27,">=3") -> 1 | AH8: =COUNTIF(I18:I27,">=10") -> 0
A9: 04. | B9: 6.7 | C9: 10.1 | D9: 3.7 | E9: 2.2 | F9: 64 | G9: 83 | H9: 7.3 | I9: . | L9: . | M9: 1002.9 | N9: 3.9 | O9: 1 | V9: 4 | AA9: =COUNTIF(C30:C39,">=30") -> 0 | AB9: =COUNTIF(C30:C39,">=25") -> 0 | AC9: =COUNTIF(C30:C39,"<0") -> 0 | AE9: =COUNTIF(I30:I39,">=0,1") -> 6 | AF9: =COUNTIF(I30:I39,">=1") -> 4 | AG9: =COUNTIF(I30:I39,">=3") -> 3 | AH9: =COUNTIF(I30:I39,">=10") -> 0
A10: 05. | B10: 6.8 | C10: 10.7 | D10: 3.2 | E10: 1.7 | F10: 62 | G10: 80 | H10: 6.4 | I10: . | L10: 1.8 | M10: 1016.1 | N10: 3.5 | O10: 1 | V10: 3
A11: 06. | B11: 5.3 | C11: 8.2 | D11: 1.6 | E11: 0.6 | F11: 81 | G11: 89 | H11: 6.1 | I11: . | L11: 0.3 | M11: 1029.4 | N11: 3.7 | O11: 1 | V11: 3 | AA11: min <0,0°C | AB11: min <0-10,0°C | AE11: rel.Lf. 14h >=70% | AG11: rel.Lf. 14h <=40%
A12: 07. | B12: 3.9 | C12: 11.2 | D12: -2.8 | E12: -3.9 | F12: 56 | G12: 82 | H12: 2.8 | I12: . | L12: 5.3 | M12: 1028.3 | N12: 0.3 | O12: 1 | V12: 2 | AA12: =COUNTIF(D6:D15,"<0") -> 3 | AB12: =COUNTIF(D6:D15,"<=-10") -> 0 | AE12: =COUNTIF(F6:F15,">=70") -> 2 | AG12: =COUNTIF(F6:F15,"<=40") -> 1
A13: 08. | B13: 5.1 | C13: 10.5 | D13: 0.8 | E13: -0.6 | F13: 73 | G13: 85 | H13: 3.4 | I13: . | L13: 2 | M13: 1033.4 | N13: 2.8 | O13: 1 | V13: 3 | AA13: =COUNTIF(D18:D27,"<0") -> 2 | AB13: =COUNTIF(D18:D27,"<=-10") -> 0 | AE13: =COUNTIF(F18:F27,">=70") -> 2 | AG13: =COUNTIF(F18:F27,"<=40") -> 4
A14: 09. | B14: 6.7 | C14: 15.3 | D14: -0.3 | E14: -1.7 | F14: 48 | G14: 76 | H14: 1.1 | I14: . | L14: 6.8 | M14: 1033.8 | N14: 2.3 | O14: 1 | V14: 3 | AA14: =COUNTIF(D30:D39,"<0") -> 3 | AB14: =COUNTIF(D30:D39,"<=-10") -> 0 | AE14: =COUNTIF(F30:F39,">=70") -> 3 | AG14: =COUNTIF(F30:F39,"<=40") -> 2
A15: 10. | B15: 7.1 | C15: 14.6 | D15: 0.6 | E15: -1.1 | F15: 38 | G15: 66 | H15: 0.8 | I15: . | L15: 7.2 | M15: 1027.7 | N15: 0.6 | O15: 2 | V15: 5
A16: Su | B16: =SUM(B6:B15) -> 56.6 | C16: =SUM(C6:C15) -> 111.7 | D16: 7.8 | E16: -7.3 | F16: XXX | G16: XXX | H16: =SUM(H6:H15) -> 42.9 | I16: =SUM(I6:I15) -> 0 | J16: XX | L16: =SUM(L6:L15) -> 34.2 | M16: =SUM(M6:M15) -> 10177.7 | N16: 22.8 | O16: 13 | P16: =SUM(P6:P15) -> 0 | Q16: X | R16: =SUM(R6:R15) -> 0 | S16: =SUM(S6:S15) -> 0 | T16: 0 | U16: 0 | V16: XXX | AA16: ohne Sonne | AB16: Son. 0,1-0,9 | AC16: Son. >=10,0 | AE16: Sch. >=1 cm | AF16: Sch. >=3 cm | AG16: Sch. >=10 cm
A17: Mi | B17: =AVERAGE(B6:B15) -> 5.66 | C17: =AVERAGE(C6:C15) -> 11.17 | D17: 0.78 | E17: -0.73 | F17: XXX | G17: 80.7 | H17: 4.29 | I17: =I16/10 -> 0 | J17: XX | L17: =L16/10 -> 3.42 | M17: =AVERAGE(M6:M15) -> 1017.77 | N17: =AVERAGE(N6:N15) -> 2.28 | O17: 1.3 | P17: =ROUND(AVERAGE(P6:P15),1) ->  | Q17: X | R17: XX | S17: XX | T17: XX | U17: XX | V17: =AVERAGE(V6:V15) -> 3.8 | AA17: =COUNTIF(L6:L15,".") -> 1 | AB17: =COUNTIF(L6:L15,"<1") -> 1 | AC17: =COUNTIF(L6:L15,">=10") -> 0 | AE17: =COUNTIF(P6:P15,">=1") -> 0 | AF17: =COUNTIF(P6:P15,">=3") -> 0 | AG17: =COUNTIF(P6:P15,">=10") -> 0
A18: 11. | B18: 6.8 | C18: 15.5 | D18: -0.3 | E18: -2.2 | F18: 36 | G18: 65 | H18: 0 | I18: . | L18: 7.2 | M18: 1030.2 | N18: 0 | O18: 1 | V18: 4 | AA18: =COUNTIF(L18:L27,".") -> 1 | AB18: =COUNTIF(L18:L27,"<1") -> 4 | AC18: =COUNTIF(L18:L27,">=10") -> 0 | AE18: =COUNTIF(P18:P27,">=1") -> 0 | AF18: =COUNTIF(P18:P27,">=3") -> 0 | AG18: =COUNTIF(P18:P27,">=10") -> 0
A19: 12. | B19: 5.9 | C19: 14.6 | D19: -0.6 | E19: -1.7 | F19: 38 | G19: 69 | H19: 0.2 | I19: . | L19: 7.2 | M19: 1033.9 | N19: -0.1 | O19: 1 | V19: 3 | AA19: =COUNTIF(L30:L39,".") -> 1 | AB19: =COUNTIF(L30:L39,"<1") -> 2 | AC19: =COUNTIF(L30:L39,">=10") -> 0 | AE19: =COUNTIF(P30:P39,">=1") -> 0 | AF19: =COUNTIF(P30:P39,">=3") -> 0 | AG19: =COUNTIF(P30:P39,">=10") -> 0
A20: 13. | B20: 7.8 | C20: 17.2 | D20: 0.3 | E20: -1.1 | F20: 31 | G20: 61 | H20: 0 | I20: . | L20: 7.3 | M20: 1029 | N20: -0.2 | O20: 1 | V20: 3
A21: 14. | B21: 7.5 | C21: 15.6 | D21: 1.2 | E21: -1.1 | F21: 44 | G21: 69 | H21: 1.1 | I21: 1.2 | J21: R | L21: 7.5 | M21: 1024.3 | N21: 1.7 | O21: 1 | R21: 1 | V21: 4 | AA21: Max TT | AB21: Max TxTx | AC21: Min TgTg | AE21: Max RR
A22: 15. | B22: 7.8 | C22: 11.3 | D22: 4.7 | E22: 4.4 | F22: 44 | G22: 71 | H22: 6.7 | I22: 5.6 | J22: R | L22: 0.8 | M22: 1012.2 | N22: 2.5 | O22: 3 | R22: 1 | T22: 1 | V22: 7 | AA22: =MAX(B6:B15,B18:B27,B30:B39) -> 16.7 | AB22: =MAX(C6:C15,C18:C27,C30:C39) -> 22.3 | AC22: =MIN(E6:E15,E18:E27,E30:E39) -> -3.9 | AE22: =MAX(I6:I15,I18:I27,I30:I39) -> 6.8
A23: 16. | B23: 8.9 | C23: 11.3 | D23: 5.6 | E23: 4.4 | F23: 79 | G23: 86 | H23: 8 | I23: 1.9 | J23: R | L23: . | M23: 1009.4 | N23: 6.69 | O23: 4 | R23: 1 | T23: 1 | V23: 7 | AA23: Min TT | AB23: Min TnTn | AC23: Min U14 | AE23: Max SS
A24: 17. | B24: 10.2 | C24: 13.1 | D24: 8.7 | E24: 8.3 | F24: 63 | G24: 73 | H24: 7.3 | I24: . | L24: 0.8 | M24: 1015.3 | N24: 5.3 | O24: 3 | T24: 1 | V24: 7 | AA24: =MIN(B6:B15,B18:B27,B30:B39) -> 3.5 | AB24: =MIN(D6:D15,D18:D27,D30:D39) -> -2.8 | AC24: =MIN(F6:F15,F18:F27,F30:F39) -> 25 | AE24: =MAX(P6:P15,P18:P27,P30:P39) -> 0
A25: 18. | B25: 10.3 | C25: 13.3 | D25: 7.9 | E25: 7.2 | F25: 58 | G25: 72 | H25: 7.9 | I25: 1.7 | J25: R | L25: 0.7 | M25: 1014.3 | N25: 5.5 | O25: 2 | R25: 1 | V25: 5
A26: 19. | B26: 9.5 | C26: 11 | D26: 7.4 | E26: 6.1 | F26: 71 | G26: 77 | H26: 7.5 | I26: 0.6 | J26: R | L26: 0.3 | M26: 1016.8 | N26: 5.7 | O26: 3 | R26: 1 | T26: 1 | V26: 6
A27: 20. | B27: 14.1 | C27: 20.4 | D27: 8.3 | E27: 5.6 | F27: 25 | G27: 51 | H27: 3.9 | I27: . | L27: 7.3 | M27: 1019 | N27: 3.4 | O27: 2 | T27: 1 | V27: 6
A28: Su | B28: =SUM(B18:B27) -> 88.8 | C28: =SUM(C18:C27) -> 143.3 | D28: 43.2 | E28: 29.9 | F28: XXX | G28: XXX | H28: =SUM(H18:H27) -> 42.6 | I28: =SUM(I18:I27) -> 11 | J28: XX | L28: =SUM(L18:L27) -> 39.1 | M28: =SUM(M18:M27) -> 10204.4 | N28: 30.49 | O28: 21 | P28: =SUM(P18:P27) -> 0 | Q28: X | R28: =SUM(R18:R27) -> 5 | S28: =SUM(S18:S27) -> 0 | T28: 5 | U28: 0 | V28: XXX
A29: Mi | B29: =AVERAGE(B18:B27) -> 8.88 | C29: =AVERAGE(C18:C27) -> 14.33 | D29: 4.32 | E29: 2.99 | F29: 48.9 | G29: 69.4 | H29: 4.26 | I29: =I28/10 -> 1.1 | J29: XX | L29: =L28/10 -> 3.91 | M29: =AVERAGE(M18:M27) -> 1020.44 | N29: =AVERAGE(N18:N27) -> 3.049 | O29: 2.1 | P29: =ROUND(AVERAGE(P18:P27),1) ->  | Q29: X | R29: XX | S29: XX | T29: XX | U29: XX | V29: =AVERAGE(V18:V27) -> 5.2
A30: 21. | B30: 16.7 | C30: 22.3 | D30: 9.9 | E30: 7.8 | F30: 26 | G30: 43 | H30: 3.5 | I30: 0 | L30: 6.9 | M30: 1009.8 | N30: 3.8 | O30: 3 | T30: 1 | V30: 7
A31: 22. | B31: 11.2 | C31: 18.6 | D31: 7.4 | E31: 6.1 | F31: 46 | G31: 79 | H31: 7.8 | I31: 4.8 | J31: R | L31: 1 | M31: 1005.9 | N31: 7.3 | O31: 2 | R31: 1 | V31: 5
A32: 23. | B32: 5.9 | C32: 9.1 | D32: 2.9 | E32: 2.7 | F32: 70 | G32: 87 | H32: 8 | I32: 6.8 | J32: R | L32: . | M32: 1005.9 | N32: 4 | O32: 1 | R32: 1 | V32: 4
A33: 24. | B33: 3.8 | C33: 6.4 | D33: 2.1 | E33: 2.2 | F33: 80 | G33: 95 | H33: 8 | I33: 6.1 | J33: R | L33: 0.7 | M33: 1009.9 | N33: 3 | O33: 1 | R33: 1 | V33: 4
A34: 25. | B34: 4 | C34: 8.6 | D34: 0.2 | E34: -0.6 | F34: 65 | G34: 88 | H34: 5.9 | I34: 1.1 | J34: R;G | L34: 1.6 | M34: 1010.8 | N34: 2.3 | O34: 1 | R34: 1 | V34: 4
A35: 26. | B35: 4.2 | C35: 11.2 | D35: -1.8 | E35: -2.8 | F35: 53 | G35: 84 | H35: 2.3 | I35: 0.2 | J35: R | L35: 5.9 | M35: 1016 | N35: 1.2 | O35: 1 | R35: 1 | V35: 4
A36: 27. | B36: 6.2 | C36: 13.8 | D36: -0.4 | E36: -1.1 | F36: 52 | G36: 78 | H36: 1.4 | I36: 0 | L36: 6.7 | M36: 1017.1 | N36: 2.3 | O36: 1 | V36: 5
A37: 28. | B37: 5.1 | C37: 11.3 | D37: 1.1 | E37: 0.6 | F37: 80 | G37: 90 | H37: 5 | I37: 0.8 | J37: R | L37: 0.8 | M37: 1020.7 | N37: 3.7 | O37: 1 | R37: 1 | V37: 3
A38: 29. | B38: 8.3 | C38: 18.2 | D38: -0.6 | E38: -1.7 | F38: 51 | G38: 84 | H38: 0.4 | I38: . | L38: 8.7 | M38: 1023.7 | N38: 5.4 | O38: 1 | V38: 3
A39: 30. | B39: 10.8 | C39: 19 | D39: 3.2 | E39: 2.2 | F39: 38 | G39: 74 | H39: 1.8 | I39: . | L39: 7.9 | M39: 1018 | N39: 5.3 | O39: 1 | V39: 3
A40: 31. | B40: 9.7 | C40: 16 | D40: 4.3 | E40: 2.8 | F40: 51 | G40: 77 | H40: 7 | I40: . | L40: . | M40: 1014.2 | N40: 5.6 | O40: 1 | V40: 3
A41: Su | B41: =SUM(B30:B40) -> 85.9 | C41: =SUM(C30:C40) -> 154.5 | D41: 28.3 | E41: 18.2 | F41: XXX | G41: =SUM(G30:G40) -> 879 | H41: =SUM(H30:H40) -> 51.1 | I41: =SUM(I30:I40) -> 19.8 | J41: XX | L41: =SUM(L30:L40) -> 40.2 | M41: =SUM(M30:M40) -> 11152 | N41: 43.9 | O41: =SUM(O30:O40) -> 14 | P41: =SUM(P30:P40) -> 0 | Q41: X | R41: =SUM(R30:R40) -> 6 | S41: =SUM(S30:S40) -> 0 | T41: 1 | U41: 0 | V41: XXX
A42: Mi | B42: =AVERAGE(B30:B40) -> 7.809090909 | C42: =AVERAGE(C30:C40) -> 14.04545455 | D42: 2.572727273 | E42: 1.654545455 | F42: XXX | G42: =AVERAGE(G30:G40) -> 79.90909091 | H42: =AVERAGE(H30:H40) -> 4.645454545 | I42: XXXXX | J42: XX | L42: XXXX | M42: =AVERAGE(M30:M40) -> 1013.818182 | N42: =AVERAGE(N30:N40) -> 3.990909091 | O42: =AVERAGE(O30:O39) -> 1.3 | P42: =ROUND(AVERAGE(P30:P39),1) ->  | Q42: X | R42: XX | S42: XX | T42: XX | U42: XX | V42: =AVERAGE(V30:V40) -> 4.090909091
A43: MSu | B43: =SUM(B16+B28+B41) -> 231.3 | C43: =SUM(C16+C28+C41) -> 409.5 | D43: =SUM(D16+D28+D41) -> 79.3 | E43: =SUM(E16+E28+E41) -> 40.8 | F43: XXX | G43: XXX, | H43: =SUM(H16+H28+H41) -> 136.6 | I43: =SUM(I16+I28+I41) -> 30.8 | J43: XX | L43: =SUM(L16+L28+L41) -> 113.5 | M43: =SUM(M16+M28+M41) -> 31534.1 | N43: =SUM(N16+N28+N41) -> 97.19 | O43: XXX | P43: =SUM(P16+P28+P41) -> 0 | Q43: X | R43: =SUM(R16+R28+R41) -> 11 | S43: =SUM(S16+S28+S41) -> 0 | T43: =SUM(T16+T28+T41) -> 6 | U43: =SUM(U16+U28+U41) -> 0 | V43: XXX
A44: MMi | B44: =AVERAGE(B6:B15,B18:B27,B30:B40) -> 7.461290323 | C44: =AVERAGE(C6:C15,C18:C27,C30:C40) -> 13.20967742 | D44: 2.558064516 | E44: 1.316129032 | F44: XXX | G44: =AVERAGE(G6:G15,G18:G27,G30:G40) -> 76.77419355 | H44: =AVERAGE(H6:H15,H18:H27,H30:H40) -> 4.406451613 | I44: XXXXX | J44: XX | L44: XXXX | M44: =AVERAGE(M6:M15,M18:M27,M30:M40) -> 1017.229032 | N44: =AVERAGE(N6:N15,N18:N27,N30:N40) -> 3.13516129 | O44: =AVERAGE(O6:O15,O18:O27,O30:O39) -> 1.566666667 | P44: =ROUND(AVERAGE(P6:P15,P18:P27,P30:P39),1) ->  | Q44: X | R44: XX | S44: XX | T44: XX | U44: XX | V44: =AVERAGE(V17,V29,V42) -> 4.363636364
B46: Norm | C46: % v N.- | D46: Abw. | E46: Zahl der Tage | L46: Niederschlag mm | P46: Sonnensch.-dauer Std
B47: wert | C47: wert | D47: K | E47: Max.d.Lufttemp.°C | L47: >/= 0,1 | O47: =SUM(AE7:AE9) -> 11 | P47: ohne Sonne | V47: 4
A48: TTT | B48: 4.5 | C48: XXXX | D48: =SUM(B44-B48) -> 2.961290323 | E48: Tropentag/Hitzetag | I48: =SUM(AA7:AA9) -> 0 | L48: >/= 1,0 | O48: =SUM(AF7:AF9) -> 8 | P48: 0,1 bis 0,9 | V48: 7
A49: RRR | B49: 45 | C49: =SUM(I43*100/B49) -> 68.44444444 | D49: XXXX | E49: Sommertag | I49: =SUM(AB7:AB9) -> 0 | L49: >/= 3,0 | O49: =SUM(AG7:AG9) -> 4 | P49: >/= 10,0 | V49: =SUM(AC17:AC19) -> 0
A50: sss | B50: 113 | C50: =SUM(L43*100/B50) -> 100.4424779 | D50: XXXX | E50: Eistag | I50: =SUM(AC7:AC9) -> 0 | L50: >/=10,0 | O50: =SUM(AH7:AH9) -> 0 | P50: Schneedecke cm
A51: astr. | D51: XXXX | E51: Polartag | I51: 0 | L51: >/= 20,0 | O51: =SUM(AI7,AI9) -> 0 | P51: >/= 1 | V51: =SUM(AE17:AE19) -> 0
A52: mgl. | B52: 370 | C52: =SUM(L43*100/B52) -> 30.67567568 | D52: XXXX | E52: Min.d.Lufttemp.°C | L52: Rel. Luftfeuchte 14 Uhr | P52: >/= 3 | V52: =SUM(AF17:AF19) -> 0
A53: sss | D53: XXXX | E53: Frosttag | I53: =SUM(AA12:AA14) -> 8 | L53: >/=70% | O53: =SUM(AE12:AE14) -> 7 | P53: >/= 10 | V53: =SUM(AG17:AG19) -> 0
E54: Tropennacht | I54: 0 | L54: </=40% | O54: =SUM(AG12:AG14) -> 7
E57: Unter "Tage mit" sind die Angaben Bft 6 & Bft 8 nicht 10 min. - Mittel sonder 2,5 s - Werte.
E58: Wenn ein Wert auch mit einem 10 min. - Wert erreicht wird, erfolgt eine rote Markierung.
E59: Dies gilt rückwirkend auf November 2012.
F113: Tage mit Bft 6 /8 eigentlich in 10 min. - Mittel

Sheet Sichtst.
E1: Sichtweitenstatistik
B5: Wetterstation: Köttewitz | F5: Monat: | G5: März | K5: Jahr: | L5: 2014
A7: Dat. | B7: Nebeldauer | C7: Nebel | D7: Dunst | E7: Sicht | F7: Sicht | G7: Sicht | H7: Sicht
B8: in St. u. Min. | E8: mittel | F8: normal | G8: gut | H8: sehr gut
A9: 01. | B9: - | C9: - | D9: 1 | E9: 1 | F9: 1 | G9: - | H9: - | N9: =IF(ISNUMBER(B9),B9*24," ") ->  | O9: =IF(ISNUMBER(N9),IF(N9<1,1," ")," ") ->  | P9: =IF(ISNUMBER(N9),IF(N9<8,2," ")," ") ->  | Q9: =IF(ISNUMBER(N9),IF(N9<24,3," ")," ") ->  | R9: =MIN(O9:Q9) -> 0
A10: 02. | B10: - | C10: =IF(R10=1,1,"-") -> - | D10: - | E10: 1 | F10: 1 | G10: - | H10: - | R10: 0
A11: 03. | B11: - | C11: - | D11: - | E11: 1 | F11: 1 | G11: - | H11: - | R11: 0
A12: 04. | B12: - | C12: - | D12: - | E12: 1 | F12: 1 | G12: - | H12: - | R12: 0
A13: 05. | B13: - | C13: - | D13: 1 | E13: 1 | F13: - | G13: - | H13: - | R13: 0
A14: 06. | B14: - | C14: - | D14: 1 | E14: - | F14: - | G14: - | H14: - | R14: 0
A15: 07. | B15: - | C15: - | D15: 1 | E15: 1 | F15: - | G15: - | H15: - | R15: 0
A16: 08. | B16: - | C16: - | D16: 1 | E16: - | F16: - | G16: - | H16: - | R16: 0
A17: 09. | B17: - | C17: - | D17: 1 | E17: 1 | F17: - | G17: - | H17: - | R17: 0
A18: 10. | B18: - | C18: - | D18: - | E18: 1 | F18: 1 | G18: - | H18: - | R18: 0
A19: 11. | B19: - | C19: - | D19: - | E19: 1 | F19: 1 | G19: - | H19: - | R19: 0
A20: 12. | B20: - | C20: - | D20: - | E20: 1 | F20: 1 | G20: - | H20: - | R20: 0
A21: 13. | B21: - | C21: - | D21: - | E21: - | F21: 1 | G21: - | H21: - | R21: 0
A22: 14. | B22: - | C22: - | D22: - | E22: - | F22: 1 | G22: - | H22: - | R22: 0
A23: 15. | B23: - | C23: - | D23: - | E23: 1 | F23: 1 | G23: - | H23: - | R23: 0
A24: 16. | B24: - | C24: - | D24: - | E24: 1 | F24: 1 | G24: - | H24: - | R24: 0
A25: 17. | B25: - | C25: - | D25: - | E25: 1 | F25: 1 | G25: - | H25: - | R25: 0
A26: 18. | B26: - | C26: - | D26: - | E26: 1 | F26: - | G26: - | H26: - | R26: 0
A27: 19. | B27: - | C27: - | D27: - | E27: 1 | F27: 1 | G27: - | H27: - | R27: 0
A28: 20. | B28: - | C28: - | D28: - | E28: - | F28: 1 | G28: 1 | H28: - | R28: 0
A29: 21. | B29: - | C29: - | D29: - | E29: - | F29: 1 | G29: 1 | H29: - | R29: 0
A30: 22. | B30: - | C30: - | D30: 1 | E30: 1 | F30: 1 | G30: - | H30: - | R30: 0
A31: 23. | B31: - | C31: - | D31: 1 | E31: 1 | F31: 1 | G31: - | H31: - | R31: 0
A32: 24. | B32: - | C32: - | D32: 1 | E32: 1 | F32: 1 | G32: - | H32: - | R32: 0
A33: 25. | B33: - | C33: - | D33: - | E33: 1 | F33: 1 | G33: - | H33: - | R33: 0
A34: 26. | B34: - | C34: - | D34: 1 | E34: 1 | F34: 1 | G34: - | H34: - | R34: 0
A35: 27. | B35: - | C35: - | D35: - | E35: - | F35: 1 | G35: - | H35: - | R35: 0
A36: 28. | B36: - | C36: - | D36: - | E36: 1 | F36: 1 | G36: - | H36: -
A37: 29. | B37: - | C37: - | D37: - | E37: 1 | F37: - | G37: - | H37: -
A38: 30. | B38: - | C38: - | D38: - | E38: 1 | F38: - | G38: - | H38: -
A39: 31. | B39: - | C39: - | D39: - | E39: 1 | F39: - | G39: - | H39: - | R39: 0
A40: Su. | B40: =SUM(B9:B39) -> 00:00:00 | C40: 0 | D40: 10 | E40: 24 | F40: 22 | G40: 2 | H40: 0
B42: Anzahl der Nebeltage : | E42: =SUM(C40) -> 0
B43: Anzahl der Tage Sicht >= 50 km : | E43: =SUM(G40) -> 2

Sheet Monatsdiagramm
A1: Klimadiagramm | C1: Wetterstation Köttewitz | I1: (213 m ü. NHN)
A3: März 2014
C5: aktuell | D5: langj. Mittel | E5: Abw. vom lj. Mittel
B6: höchste Temperatur (°C): | C6: =MAX('Daten für Diagr.'!C2:C32) -> 22.3 | D6: am | E6: 2014-03-21
B7: mittlere Temperatur (°C): | C7: ='Daten für Diagr.'!B33 -> 7.461290323 | D7: =Kurztabelle!B48 -> 4.5 | E7: =C7-D7 -> 2.961290323 | F7: K
B8: tiefste Temperatur (°C): | C8: =MIN('Daten für Diagr.'!D2:D32) -> -2.8 | D8: am | E8: 2014-03-07
B9: Niederschlagshöhe (mm): | C9: =Kurztabelle!I43 -> 30.8 | D9: =Kurztabelle!B49 -> 45 | E9: =100/D9*C9 -> 68.44444444 | F9: %
B10: Sonnenscheindauer (Std.)*: | C10: =Kurztabelle!L43 -> 113.5 | D10: =Kurztabelle!B50 -> 113 | E10: =100/D10*C10 -> 100.4424779 | F10: %
A66: *Die Wetterstation kann, durch geographische Hindernisse, nicht die maximal mögliche Sonnenscheindauer aufzeichnen. Es gilt ein Übergangsprozentsatz von: Dez 30 %; Okt/Nov & Jan/Feb 40 %; Mär 65 %; Apr & Sep 80 %; Mai - August 90 %.
A67: Diese Werte entsprechend annähernd 100 % (Normalwert Köttewitz). Nach 10 Jahren erfolgt die Umstellung des Prozentsatzes nach der örtlichen Aufzeichnung.

Sheet Daten für Diagr.
B1: Td | C1: Tmax | D1: Tmin | E1: RR | F1: Schnee | G1: Sonne | H1: Luftdr. | I1: MWT | J1: GWL | K1: Name | L1: Sonstiges
A2: 2014-03-01 | B2: 3.5 | C2: 8.7 | D2: -0.2 | G2: 4.8 | H2: 1004.4 | I2: 1.5 | J2: TrW | K2: T Andrea 1 | L2: Von 04:00 Uhr - 08:19 Uhr mäßiger Dunst. Von 01:00 Uhr - 03:59 Uhr; 08:20 Uhr - 08:59 Uhr leichter Dunst.
A3: 2014-03-02 | B3: 5.4 | C3: 11.2 | D3: 0.3 | G3: 3.1 | H3: 1004.1 | I3: 1.65
A4: 2014-03-03 | B4: 6.1 | C4: 11.2 | D4: 0.9 | G4: 2.9 | H4: 997.6 | I4: 1.8
A5: 2014-03-04 | B5: 6.7 | C5: 10.1 | D5: 3.7 | H5: 1002.9 | I5: 1.95
A6: 2014-03-05 | B6: 6.8 | C6: 10.7 | D6: 3.2 | G6: 1.8 | H6: 1016.1 | I6: 2.15 | L6: Von 04:30 Uhr - 07:49 Uhr leichter Dunst.
A7: 2014-03-06 | B7: 5.3 | C7: 8.2 | D7: 1.6 | G7: 0.3 | H7: 1029.4 | I7: 2.35 | J7: BM | K7: H Guido | L7: Von 04:50 Uhr - 13:09 Uhr starker Dunst. Von 03:50 Uhr - 04:49 Uhr; 13:10 Uhr - 13:59 Uhr mäßiger Dunst. Von 02:50 Uhr - 03:49 Uhr; 14:00 Uhr - 14:19 Uhr; 17:20 Uhr - Uhr leichter Dunst.
A8: 2014-03-07 | B8: 3.9 | C8: 11.2 | D8: -2.8 | G8: 5.3 | H8: 1028.3 | I8: 2.55 | L8: Von 05:50 Uhr - 07:39 Uhr starker Dunst. Von 05:40 Uhr - 05:49 Uhr; 07:40 Uhr - 07:49 Uhr mäßiger Dunst. Von 05:30 Uhr - 05:39 Uhr; 07:50 Uhr - 07:59 Uhr; 21:20 Uhr - 23:59 Uhr leichter Dunst.
A9: 2014-03-08 | B9: 5.1 | C9: 10.5 | D9: 0.8 | G9: 2 | H9: 1033.4 | I9: 2.75 | J9: HM | K9: H Helmut | L9: Von 01:10 Uhr - 09:19 Uhr mäßiger Dunst. Von 00:00 Uhr - 01:09 Uhr; 09:20 Uhr - 23:59 Uhr leichter Dunst.
A10: 2014-03-09 | B10: 6.7 | C10: 15.3 | D10: -0.3 | G10: 6.8 | H10: 1033.8 | I10: 2.95 | L10: Von 00:00 Uhr - 10:59 Uhr leichter Dunst.
A11: 2014-03-10 | B11: 7.1 | C11: 14.6 | D11: 0.6 | G11: 7.2 | H11: 1027.7 | I11: 3.15
A12: 2014-03-11 | B12: 6.8 | C12: 15.5 | D12: -0.3 | G12: 7.1 | H12: 1030.2 | I12: 3.35 | J12: HB | K12: H Ingo
A13: 2014-03-12 | B13: 5.9 | C13: 14.6 | D13: -0.6 | G13: 7.2 | H13: 1033.9 | I13: 3.55 | J13: HM | L13: Beginn der Löwenzahnblüte.
A14: 2014-03-13 | B14: 7.8 | C14: 17.2 | D14: 0.3 | G14: 7.3 | H14: 1029 | I14: 3.75
A15: 2014-03-14 | B15: 7.5 | C15: 15.6 | D15: 1.2 | E15: 1.2 | G15: 7.5 | H15: 1024.3 | I15: 3.95
A16: 2014-03-15 | B16: 7.8 | C16: 11.3 | D16: 4.7 | E16: 5.6 | G16: 0.8 | H16: 1012.2 | I16: 4.15 | J16: NWz | K16: T Ev | L16: Beginn der Süßkirschblüte.
A17: 2014-03-16 | B17: 8.9 | C17: 11.3 | D17: 5.6 | E17: 1.9 | H17: 1009.4 | I17: 4.35
A18: 2014-03-17 | B18: 10.2 | C18: 13.1 | D18: 8.7 | G18: 0.8 | H18: 1015.3 | I18: 4.55 | K18: T Filiz 2
A19: 2014-03-18 | B19: 10.3 | C19: 13.3 | D19: 7.9 | E19: 1.7 | G19: 0.7 | H19: 1014.3 | I19: 4.75 | J19: Wz | K19: T Filiz
A20: 2014-03-19 | B20: 9.5 | C20: 11 | D20: 7.4 | E20: 0.6 | G20: 0.3 | H20: 1016.8 | I20: 4.9
A21: 2014-03-20 | B21: 14.1 | C21: 20.4 | D21: 8.3 | G21: 7.3 | H21: 1019 | I21: 5.05 | J21: Wa | K21: H Johannes
A22: 2014-03-21 | B22: 16.7 | C22: 22.3 | D22: 9.9 | G22: 6.9 | H22: 1009.8 | I22: 5.2 | J22: TrW | K22: T Ilse
A23: 2014-03-22 | B23: 11.2 | C23: 18.6 | D23: 7.4 | E23: 4.8 | G23: 1 | H23: 1005.9 | I23: 5.35 | J23: TrM | L23: Von 15:30 Uhr - 22:09 Uhr leichter Dunst.
A24: 2014-03-23 | B24: 5.9 | C24: 9.1 | D24: 2.9 | E24: 6.8 | H24: 1005.9 | I24: 5.5 | L24: Von 18:30 Uhr - 23:59 Uhr leichter Dunst.
A25: 2014-03-24 | B25: 3.8 | C25: 6.4 | D25: 2.1 | E25: 6.1 | G25: 0.7 | H25: 1009.9 | I25: 5.65 | J25: SEz (Vb) | L25: Von 00:00 Uhr - 09:09 Uhr leichter Dunst.
A26: 2014-03-25 | B26: 4 | C26: 8.6 | D26: 0.2 | E26: 1.1 | G26: 1.6 | H26: 1010.8 | I26: 5.8
A27: 2014-03-26 | B27: 4.2 | C27: 11.2 | D27: -1.8 | E27: 0.2 | G27: 5.9 | H27: 1016 | I27: 5.95 | J27: TM | L27: Von 02:50 Uhr - 06:29 Uhr starker Dunst. Von 00:50 Uhr - 02:49 Uhr; 06:30 Uhr - 06:59 Uhr mäßiger Dunst. Von 00:00 Uhr - 00:49 Uhr; 07:00 Uhr - 07:49 Uhr leichter Dunst.
A28: 2014-03-27 | B28: 6.2 | C28: 13.8 | D28: -0.4 | G28: 6.7 | H28: 1017.1 | I28: 6.1 | J28: HNFa | K28: H Kai
A29: 2014-03-28 | B29: 5.1 | C29: 11.3 | D29: 1.1 | E29: 0.8 | G29: 0.8 | H29: 1020.7 | I29: 6.25
A30: 2014-03-29 | B30: 8.3 | C30: 18.2 | D30: -0.6 | G30: 8.7 | H30: 1023.7 | I30: 6.4
A31: 2014-03-30 | B31: 10.8 | C31: 19 | D31: 3.2 | G31: 7.9 | H31: 1018 | I31: 6.55 | J31: SEa
A32: 2014-03-31 | B32: 9.7 | C32: 16 | D32: 4.3 | G32: . | H32: 1014.2 | I32: 6.7
A33: Durchschnitt | B33: =AVERAGE(B2:B32) -> 7.461290323 | C33: =AVERAGE(C2:C32) -> 13.20967742 | D33: 2.558064516 | H33: =AVERAGE(H2:H32) -> 1017.229032 | I33: =AVERAGE(I2:I32) -> 4.212903226
A34: Mittel | B34: 4.5 | E34: 45 | F34: - | G34: 113 | H34: 1016.2
A90: 1
A91: 2
A92: 3
A93: 4
A94: 5
A95: 6
A96: 7
A97: 8
A98: 9
A99: 10
A100: 11
A101: 12
A102: 13
A103: 14
A104: 15
A105: 16
A106: 17
A107: 18
A108: 19
A109: 20
A110: 21
A111: 22
A112: 23
A113: 24
A114: 25
A115: 26
A116: 27
A117: 28
A118: 29
A119: 30
A120: 31

Sheet Erdbodentem.
E1: Erdbodentemperatur
B5: Wetterstation: Köttewitz | F5: Monat: | G5: März | K5: Jahr: | L5: 2014
A7: Dat. | B7: 7 Uhr | C7: 8 Uhr | D7: 12 Uh | E7: 13 Uhr | F7: 20 Uhr | H7: NN | I7: 5 °C - Ein-
I8: dringtiefe
A9: 01. | B9: - | D9: - | F9: 3,9 °C/4,8 °C/4,7 °C | H9: n | I9: -
A10: 02. | B10: 1,9 °C/3,7 °C/5,1 °C | D10: 4,5 °C/3,0 °C/5,1 °C | F10: - | H10: n | I10: Ab 48 cm
A11: 03. | B11: 2,1 °C/2,4 °C/5,1 °C | D11: - | F11: 4,9 °C/4,9 °C/5,2 °C | H11: n | I11: Ab 34 cm
A12: 04. | B12: 3,8 °C/4,0 °C/5,3 °C | D12: - | F12: 6,2 °C/5,6 °C/5,4 °C | H12: t | I12: Bis 60 cm
A13: 05. | B13: 4,0 °C/4,4 °C/5,5 °C | D13: - | F13: 6,5 °C/6,5 °C/5,7 °C | H13: n | I13: Bis 56 cm
A14: 06. | B14: 5,1 °C/5,4 °C/6,1 °C | D14: - | F14: - | H14: n | I14: > 1 m
A15: 07. | B15: 2,2 °C/4,1 °C/6,1 °C | D15: - | F15: 6,2 °C/5,4 °C/6,1 °C | H15: n | I15: Ab 17 cm
A16: 08. | B16: 2,8 °C/4,5 °C/6,1 °C | D16: 6,2 °C/4,9 °C/6,1 °C | F16: - | H16: n | I16: Ab 30 cm
A17: 09. | B17: - | D17: 5,0 °C/3,8 °C/6,1 °C | F17: 5,8 °C/5,4 °C/5,8 °C | H17: h | I17: Ab 7 cm
A18: 10. | B18: 2,2 °C/3,5 °C/5,9 °C | D18: - | F18: 6,0 °C/5,5 °C/6,0 °C | H18: h | I18: Ab 19 cm
A19: 11. | B19: 2,1 °C/3,6 °C/6,1 °C | D19: - | F19: 6,2 °C/6,3 °C/6,2 °C | H19: h | I19: Ab 19 cm
A20: 12. | B20: 2,2 °C/3,8 °C/6,2 °C | D20: - | F20: - | H20: h | I20: Ab 25 cm
A21: 13. | B21: - | D21: - | F21: - | H21: - | I21: -
A22: 14. | B22: - | F22: - | H22: - | I22: -
A23: 15. | B23: - | D23: 7,2 °C/5,6 °C/6,4 °C | F23: - | H23: t | I23: > 1 m
A24: 16. | B24: - | D24: 7,0 °C/6,2 °C/6,5 °C | F24: - | H24: t | I24: > 1 m
A25: 17. | B25: 6,7 °C/6,7 °C/6,7 °C | D25: - | F25: - | H25: t | I25: > 1 m
A26: 18. | B26: 7,0 °C/7,1 °C/7,4 °C | D26: - | F26: - | H26: t | I26: > 1 m
A27: 19. | B27: 7,8 °C/8,3 °C/7,9 °C | D27: - | F27: - | H27: t | I27: > 1 m
A28: 20. | B28: 6,2 °C/7,2 °C/8,3 °C | D28: - | F28: - | H28: n | I28: > 1 m
A29: 21. | B29: 7,2 °C/8,2 °C/8,6 °C | D29: - | F29: - | H29: n | I29: > 1 m
A30: 22. | B30: 9,4 °C/9,4 °C/9,3 °C | D30: 12,0 °C/9,7 °C/9,3 °C | F30: - | H30: t | I30: > 1 m
A31: 23. | B31: 7,8 °C/8,3 °C/9,4 °C | D31: 10,1 °C/9,3 °C/9,4 °C | F31: - | H31: t | I31: > 1 m
A32: 24. | B32: 6,2 °C/7,2 °C/9,1 °C | D32: - | F32: - | H32: t | I32: > 1 m
A33: 25. | B33: 6,1 °C/6,8 °C/7,4 °C | D33: - | F33: 8,7 °C/8,7 °C/8,4 °C | H33: n | I33: > 1 m
A34: 26. | B34: 3,6 °C/5,4 °C/8,4 °C | D34: - | F34: 7,6 °C/7,2 °C/7,4 °C | H34: n | I34: Ab 9 cm
A35: 27. | B35: 3,4 °C/5,3 °C/8,1 °C | D35: - | F35: 7,8 °C/8,2 °C/7,6 °C | H35: h | I35: Ab 9 cm
A36: 28. | B36: 4,5 °C/5,6 °C/7,7 °C | D36: - | F36: 8,0 °C/7,8 °C/7,7 °C | H36: n | I36: Ab 5 cm
A37: 29. | B37: 3,6 °C/5,2 °C/7,8 °C | D37: 11,0 °C/6,7 °C/7,8 °C | F37: - | H37: h | I37: Ab 9 cm
A38: 30. | B38: 5,5 °C/7,1 °C/8,4 °C | D38: - | F38: - | H38: n | I38: > 1 m
A39: 31. | B39: 6,1 °C/7,8 °C/9,1 °C | D39: - | F39: - | H39: t | I39: > 1 m
B41: Temperatur - 10 cm/Temperatur - 20 cm/Temperatur -50 cm
